bitfinex-derivatives/quotes_ETHF0:USTF0_20250607
["timestamp","ask_amount","ask_price","bid_price","bid_amount"]
[1749334935015,0.79267,2521.7,2521.6,3.9027]
[1749334935314,0.79267,2521.7,2521.6,8.4877]
[1749334935702,0.79267,2521.7,2521.6,5.2799]
[1749334936409,2.12967,2521.7,2521.6,5.2799]
[1749334937307,1.337,2521.7,2521.4,0.00595226]
[1749334937507,0.7927,2521.6,2521.5,0.6692]
[1749334937711,0.79274,2521.5,2521.4,0.00595226]
[1749334938010,2.12974,2521.5,2521.4,0.00595226]
[1749334949313,1.337,2521.5,2521.4,0.79872226]
[1749334949617,1.39785226,2521.9,2521.4,0.00595226]
[1749334949922,0.79266,2521.8,2521.7,0.79266]
[1749334950417,0.79267,2521.7,2521.6,4.69809]
[1749334951806,0.79265,2521.8,2521.7,0.79266]
[1749334954811,0.79265,2521.8,2521.6,3.9054]
[1749334955012,0.79265,2521.8,2521.7,0.79267]
[1749334955708,0.79859226,2521.9,2521.8,0.79264]
[1749334955916,0.79859226,2521.9,2521.8,5.37864]
[1749334957322,0.79859226,2521.9,2521.8,4.586]
[1749334958719,0.79859226,2521.9,2521.8,5.37864]
[1749334959521,0.79859226,2521.9,2521.8,8.58644]
[1749334963516,0.79267,2521.7,2521.6,0.6976]
[1749334963721,2.06087,2521.8,2521.6,5.2836]
[1749334963920,2.06087,2521.8,2521.7,0.79267]
[1749334964820,0.79267,2521.7,2521.6,6.07629]
[1749334965717,1.2682,2521.8,2521.4,0.00595226]
[1749334965718,0.79274,2521.5,2521.4,0.00595226]
[1749334966714,0.79286,2521.1,2521.0,0.67451513]
[1749334967913,4.00066,2521.1,2521.0,0.67451513]
[1749334968116,4.66536,2521.1,2521.0,0.67451513]
[1749334970917,1.45756,2521.1,2521.0,0.67451513]
[1749334971119,0.79284,2521.2,2521.1,0.79285]
[1749334971426,0.79286,2521.1,2521.0,6.58971513]
[1749334972823,0.79286,2521.1,2521.0,5.89541513]
[1749334974922,0.79286,2521.1,2521.0,6.68830513]
[1749334978530,0.79286,2521.1,2521.0,5.89541513]
[1749334981328,2.05666,2521.1,2521.0,5.89541513]
[1749334981929,2.05666,2521.1,2521.0,5.90541513]
[1749334984625,2.05666,2521.1,2521.0,6.69830513]
[1749334985031,2.05666,2521.1,2521.0,5.90541513]
[1749334985529,2.05666,2521.1,2521.0,6.69830513]
[1749334987634,0.79286,2521.1,2521.0,6.69830513]
[1749334991943,0.6817,2521.2,2521.0,6.69830513]
[1749334991944,1.47455,2521.2,2521.1,0.79286]
[1749334992136,0.79285,2521.2,2521.1,0.79286]
[1749334993443,4.00058,2521.4,2521.3,0.7928]
[1749334994239,0.79282,2521.3,2521.2,0.79282]
[1749334998643,0.79282,2521.3,2521.2,4.00062]
[1749335000540,0.79279,2521.4,2521.3,0.79279]
[1749335000742,1.262,2521.5,2521.2,3.2078]
[1749335000943,0.7928,2521.3,2521.2,4.00061]
[1749335001137,0.6768,2521.7,2521.2,3.27671172]
[1749335001442,0.79275,2521.5,2521.4,0.79275]
[1749335001744,0.79275,2521.5,2521.4,1.47375]
[1749335002949,0.79273,2521.6,2521.5,0.79273]
[1749335004052,0.79857226,2521.9,2521.8,0.79264]
[1749335004239,0.00595226,2521.9,2521.8,0.79264]
[1749335004445,0.00595226,2521.9,2521.8,1.46994]
[1749335004746,0.00595226,2521.9,2521.8,4.67774]
[1749335009742,0.00595226,2521.9,2521.8,5.31844]
[1749335011242,0.79856226,2521.9,2521.8,5.31844]
[1749335012048,0.00595226,2521.9,2521.8,5.31844]
[1749335012451,0.00595226,2521.9,2521.8,6.58264]
[1749335013149,3.2078,2522.3,2522.2,0.79252]
[1749335013349,0.79243,2522.5,2522.3,0.79246]
[1749335013549,0.79243,2522.5,2522.4,0.79245]
[1749335014150,1.3776,2522.6,2522.3,0.6587]
[1749335014457,0.66865226,2522.7,2522.6,0.79239]
[1749335017559,1.93515226,2522.7,2522.6,0.79239]
[1749335017958,2.72751226,2522.7,2522.6,0.79239]
[1749335021665,1.93515226,2522.7,2522.6,0.79239]
[1749335025770,0.00595226,2522.7,2522.6,0.79239]
[1749335026975,0.00595226,2522.7,2522.6,4.00019]
[1749335027168,0.6762,2523.1,2523.0,0.79227]
[1749335027473,0.737,2523.6,2523.0,0.79227]
[1749335027474,1.2642,2523.4,2523.3,0.79217]
[1749335027670,1.2642,2523.4,2523.3,5.37917]
[1749335034082,2.05634,2523.4,2523.3,5.37917]
[1749335034285,1.2642,2523.4,2523.3,5.37917]
[1749335034783,6.2642,2523.4,2523.0,0.79226]
[1749335034985,0.79222,2523.2,2523.1,0.79223]
[1749335035283,2.09979,2523.3,2523.2,0.7922]
[1749335035884,0.79221,2523.2,2523.1,0.79221]
[1749335036071,2.09981,2523.2,2523.1,0.79221]
[1749335036582,1.3076,2523.2,2523.1,0.79221]
[1749335037186,2.0998,2523.2,2523.1,0.79221]
[1749335037482,1.3076,2523.2,2523.1,0.79221]
[1749335044689,1.37651172,2523.2,2523.1,0.79221]
[1749335053492,2.16871172,2523.2,2523.1,0.79221]
[1749335054997,1.37651172,2523.2,2523.1,0.79221]
[1749335055694,2.16871172,2523.2,2523.1,0.79221]
[1749335056494,0.79223,2523.1,2523.0,4.63485]
[1749335056703,0.86113172,2523.2,2523.1,5.39223]
[1749335058501,0.79223,2523.1,2523.0,4.63485]
[1749335058802,0.86113172,2523.2,2523.1,0.79223]
[1749335059796,0.06891172,2523.2,2523.1,0.79223]
[1749335060102,0.86111172,2523.2,2523.1,0.79223]
[1749335060801,0.06891172,2523.2,2523.1,0.79223]
[1749335060997,0.06891172,2523.2,2523.1,1.42813]
[1749335061800,0.06891172,2523.2,2523.1,2.06263]
[1749335062104,0.79215,2523.4,2523.3,0.79217]
[1749335062399,0.79213,2523.5,2523.4,0.79214]
[1749335062607,0.6354,2523.7,2523.4,4.6]
[1749335062797,0.79211,2523.5,2523.4,5.39212]
[1749335062997,1.87885436,2523.5,2523.4,4.6]
[1749335063201,1.87885436,2523.5,2523.4,5.39214]
[1749335063407,0.79219,2523.3,2523.1,1.2704]
[1749335063609,0.79215,2523.4,2523.3,0.79215]
[1749335063907,0.6354,2523.7,2523.3,4.6]
[1749335064112,0.79214,2523.5,2523.4,0.79213]
[1749335064301,1.87892176,2523.5,2523.4,0.79213]
[1749335064507,0.79214,2523.4,2523.3,5.39215]
[1749335065503,0.79214,2523.4,2523.3,4.6]
[1749335066411,0.79214,2523.4,2523.3,5.39217]
[1749335068113,0.7922,2523.2,2523.1,1.2704]
[1749335068311,2.61555,2523.7,2523.1,5.2359]
[1749335068515,0.79216,2523.4,2523.3,0.79217]
[1749335071716,0.79219,2523.3,2523.2,0.79219]
[1749335071915,2.05919,2523.3,2523.2,0.79219]
[1749335075519,1.267,2523.3,2523.1,5.2359]
[1749335075718,2.0592,2523.3,2523.2,0.7922]
[1749335076820,1.267,2523.3,2523.1,5.2359]
[1749335077208,0.7922,2523.2,2523.1,6.0281]
[1749335077720,2.70759,2523.3,2523.2,0.7922]
[1749335080425,0.7922,2523.2,2523.1,6.02812]
[1749335082734,0.7922,2523.2,2523.1,6.01212]
[1749335083637,2.70759,2523.3,2523.2,0.7922]
[1749335084136,0.7922,2523.2,2523.1,6.01211]
[1749335084437,0.7922,2523.2,2523.1,5.2199]
[1749335084734,2.1462,2523.2,2523.1,5.2199]
[1749335084940,0.79227,2523.0,2522.9,3.2078]
[1749335085129,0.79227,2523.0,2522.9,7.7918]
[1749335085330,0.79227,2523.0,2522.9,8.5841]
[1749335085628,2.14625,2523.1,2523.0,0.79227]
[1749335086029,2.14625,2523.1,2523.0,1.43657]
[1749335088836,1.354,2523.1,2523.0,1.43657]
[1749335090235,1.42291172,2523.1,2523.0,1.43657]
[1749335090436,0.06891172,2523.1,2523.0,1.43657]
[1749335091138,0.06891172,2523.1,2523.0,2.73827]
[1749335091341,2.08602,2523.5,2523.4,0.79214]
[1749335091544,2.08602,2523.5,2523.4,5.37614]
[1749335091837,2.08601,2523.5,2523.4,5.37614]
[1749335092736,0.79206,2523.7,2523.6,0.79206]
[1749335093937,2.08276,2523.7,2523.6,0.79206]
[1749335094130,0.79208,2523.6,2523.5,0.79211]
[1749335094328,2.08277,2523.7,2523.6,0.79208]
[1749335099144,1.2907,2523.7,2523.6,0.79208]
[1749335099546,1.42672,2523.8,2523.7,0.79205]
[1749335100946,0.79205,2523.7,2523.6,1.47756]
[1749335101750,3.2078,2523.9,2523.8,0.79201]
[1749335102049,1.97953,2524.5,2523.8,0.79201]
[1749335102050,0.79194,2524.1,2524.0,0.79195]
[1749335102247,6.01081,2524.2,2524.1,0.79192]
[1749335102550,5.2189,2524.2,2524.1,0.79192]
[1749335102845,0.79177,2524.6,2524.1,12.7918]
[1749335103052,0.79177,2524.6,2524.2,0.6653]
[1749335103250,0.79176,2524.6,2524.5,0.79179]
[1749335103452,0.79176,2524.6,2524.5,4.584]
[1749335104041,0.79179,2524.5,2524.4,3.2078]
[1749335104246,0.79183,2524.4,2524.3,5.2247]
[1749335104447,1.46903,2524.4,2524.3,5.2247]
[1749335104845,0.79189,2524.3,2524.1,3.2078]
[1749335105050,2.10319,2524.3,2524.2,4.583]
[1749335106154,1.3113,2524.3,2524.2,5.37489]
[1749335106452,1.3113,2524.3,2524.2,4.583]
[1749335106652,2.10316,2524.3,2524.2,4.583]
[1749335107954,2.10316,2524.3,2524.2,5.37489]
[1749335109456,2.10316,2524.3,2524.2,4.583]
[1749335111963,2.10316,2524.3,2524.1,4.583]
[1749335111964,0.79189,2524.2,2524.1,4.583]
[1749335112157,2.08159,2524.2,2524.1,4.583]
[1749335120665,2.15050172,2524.2,2524.1,4.583]
[1749335129568,3.33834172,2524.2,2523.8,3.2078]
[1749335129770,0.79198,2523.9,2523.8,3.2078]
[1749335130071,0.79198,2523.9,2523.8,7.7908]
[1749335131064,0.79198,2523.9,2523.8,3.2078]
[1749335131366,0.79201,2523.8,2523.7,28.546]
[1749335132267,0.79201,2523.8,2523.7,23.963]
[1749335132467,0.79201,2523.8,2523.7,28.548]
[1749335135572,0.79201,2523.8,2523.7,23.963]
[1749335135771,0.79205,2523.7,2523.6,5.2576]
[1749335137768,2.18775,2523.7,2523.6,0.6726]
[1749335137973,2.18775,2523.7,2523.6,4.585]
[1749335138676,2.18775,2523.7,2523.6,5.2807]
[1749335140574,2.18775,2523.7,2523.6,0.6957]
[1749335143180,0.79205,2523.7,2523.6,0.6957]
[1749335143372,0.79205,2523.7,2523.6,1.3498]
[1749335146480,0.79205,2523.7,2523.6,2.14188]
[1749335148085,0.79203,2523.8,2523.6,1.3498]
[1749335148269,0.79205,2523.7,2523.6,2.14186]
[1749335148476,0.737,2524.0,2523.6,1.3498]
[1749335148675,0.79198,2523.9,2523.8,3.99979]
[1749335148884,1.52898,2524.0,2523.9,0.79198]
[1749335149084,1.52898,2524.0,2523.8,8.58479]
[1749335149085,0.79198,2523.9,2523.8,8.58479]
[1749335149575,0.737,2524.0,2523.8,7.7928]
[1749335149780,0.79198,2523.9,2523.8,8.5848]
[1749335157785,0.79198,2523.9,2523.8,5.377]
[1749335157985,0.79198,2523.9,2523.8,8.5848]
[1749335158479,0.79192,2524.2,2524.1,0.79192]
[1749335158681,0.79192,2524.2,2524.1,8.58472]
[1749335159489,0.79192,2524.2,2524.1,7.7928]
[1749335160392,0.79192,2524.2,2524.1,8.58472]
[1749335164284,0.86083172,2524.2,2524.1,8.58472]
[1749335165590,2.16183172,2524.2,2524.1,8.58472]
[1749335166791,2.16183172,2524.2,2524.1,7.7928]
[1749335167092,2.16183172,2524.2,2524.1,8.58472]
[1749335173700,0.06891172,2524.2,2524.1,8.58472]
[1749335174199,0.86080172,2524.2,2524.1,8.58472]
[1749335175204,0.86080172,2524.2,2524.1,3.2078]
[1749335175400,0.79195,2524.0,2523.9,4.583]
[1749335175897,0.79198,2523.9,2523.8,3.2078]
[1749335176200,2.85638,2523.9,2523.8,3.2078]
[1749335179194,0.79201,2523.8,2523.7,4.583]
[1749335179396,2.85061,2523.8,2523.7,7.7908]
[1749335181506,2.85061,2523.8,2523.7,3.2078]
[1749335181707,0.79208,2523.6,2523.5,0.00595226]
[1749335194918,0.86099172,2523.6,2523.5,0.00595226]
[1749335195818,0.79208,2523.6,2523.5,0.00595226]
[1749335198516,0.79208,2523.6,2523.5,0.64535226]
[1749335202123,0.79208,2523.6,2523.5,3.85315226]
[1749335202422,1.90040515,2523.6,2523.5,3.85315226]
[1749335203820,1.90040515,2523.6,2523.5,0.64535226]
[1749335205028,1.90040515,2523.6,2523.5,0.00595226]
[1749335205430,1.9021419,2523.6,2523.5,0.00595226]
[1749335209122,1.97105362,2523.6,2523.5,0.00595226]
[1749335210129,1.9021419,2523.6,2523.5,0.00595226]
[1749335211037,1.97105362,2523.6,2523.5,0.00595226]
[1749335212130,1.9021419,2523.6,2523.5,0.00595226]
[1749335215232,1.97105362,2523.6,2523.5,0.00595226]
[1749335216136,1.9021419,2523.6,2523.5,0.00595226]
[1749335216736,2.6391419,2523.6,2523.5,0.00595226]
[1749335217232,2.70805362,2523.6,2523.5,0.00595226]
[1749335219138,2.6391419,2523.6,2523.5,0.00595226]
[1749335223040,2.6391419,2523.6,2523.5,0.63635226]
[1749335223240,2.6391419,2523.6,2523.5,1.31085226]
[1749335224440,2.6391419,2523.6,2523.5,0.00595226]
[1749335226340,2.70805362,2523.6,2523.5,0.00595226]
[1749335227335,2.6391419,2523.6,2523.5,0.00595226]
[1749335228240,2.70805362,2523.6,2523.5,0.00595226]
[1749335229440,2.6391419,2523.6,2523.5,0.00595226]
[1749335230443,2.70805362,2523.6,2523.5,0.00595226]
[1749335231341,2.6391419,2523.6,2523.5,0.00595226]
[1749335247157,2.64099062,2523.6,2523.5,0.00595226]
[1749335247650,0.79239,2522.6,2522.5,27.1668]
[1749335247846,0.79239,2522.6,2522.5,32.3934]
[1749335249347,0.79238,2522.7,2522.5,33.18582]
[1749335249556,0.79829226,2522.8,2522.6,0.79237]
[1749335249854,0.79236,2522.7,2522.6,1.2807]
[1749335250254,0.79236,2522.7,2522.6,6.2807]
[1749335250453,0.79830226,2522.8,2522.6,2.07309]
[1749335250652,0.79830226,2522.8,2522.7,1.3262]
[1749335254757,0.86721398,2522.8,2522.7,1.3262]
[1749335255653,0.79830226,2522.8,2522.7,1.3262]
[1749335258458,0.79236,2522.7,2522.6,3.2078]
[1749335258656,0.79236,2522.7,2522.6,4.00019]
[1749335259458,0.79236,2522.7,2522.6,3.2078]
[1749335259653,0.79236,2522.7,2522.6,4.5306]
[1749335261160,0.79236,2522.7,2522.6,3.2078]
[1749335261467,0.79236,2522.7,2522.6,7.7908]
[1749335261765,2.06716,2522.7,2522.6,7.7908]
[1749335262870,2.06716,2522.7,2522.6,4.583]
[1749335263067,2.73066,2522.7,2522.6,4.583]
[1749335267873,1.9383,2522.7,2522.6,5.37539]
[1749335268076,0.86721398,2522.8,2522.6,5.37539]
[1749335268966,0.79830226,2522.8,2522.6,5.37539]
[1749335269774,0.00595226,2522.8,2522.7,0.79236]
[1749335271275,0.79828226,2522.8,2522.7,0.79236]
[1749335271574,0.00595226,2522.8,2522.7,0.79236]
[1749335274875,0.79828226,2522.8,2522.7,0.79236]
[1749335275178,0.00595226,2522.8,2522.7,0.79236]
[1749335275675,0.79828226,2522.8,2522.7,0.79236]
[1749335275978,0.00595226,2522.8,2522.7,0.79236]
[1749335280781,0.79828226,2522.8,2522.7,0.79236]
[1749335282083,0.00595226,2522.8,2522.7,0.79236]
[1749335283889,0.79828226,2522.8,2522.7,0.79236]
[1749335284386,0.79828226,2522.8,2522.6,4.583]
[1749335284586,0.79828226,2522.8,2522.7,0.79236]
[1749335285288,0.79828226,2522.8,2522.6,5.37537]
[1749335285498,0.79236,2522.7,2522.6,5.37537]
[1749335285786,0.79830226,2522.8,2522.7,0.79236]
[1749335286391,0.00595226,2522.8,2522.7,0.79236]
[1749335287488,0.79828226,2522.8,2522.7,0.79236]
[1749335290086,0.00595226,2522.8,2522.7,0.79236]
[1749335290789,0.79828226,2522.8,2522.7,0.79236]
[1749335295093,0.00595226,2522.8,2522.7,0.79236]
[1749335297896,0.79215,2523.4,2522.8,1.98083]
[1749335298094,1.43373,2523.5,2523.4,0.79214]
[1749335298297,0.79214,2523.4,2523.3,5.37414]
[1749335298696,2.11934,2523.4,2523.3,5.37414]
[1749335299490,1.3272,2523.4,2523.3,5.37414]
[1749335314512,1.39611172,2523.4,2523.3,5.37414]
[1749335317512,1.3272,2523.4,2523.3,5.37414]
[1749335318513,1.39611172,2523.4,2523.3,5.37414]
[1749335320410,3.2078,2524.0,2523.9,0.79198]
[1749335320605,2.0601,2524.1,2523.8,4.58]
[1749335320801,1.3886,2524.0,2523.9,0.79196]
[1749335321110,2.18057,2524.0,2523.8,5.372]
[1749335321310,2.84267,2524.0,2523.8,5.372]
[1749335321512,1.3886,2523.9,2523.8,5.372]
[1749335331916,1.45751172,2523.9,2523.8,5.372]
[1749335333716,1.3886,2523.9,2523.8,5.372]
[1749335334717,1.45751172,2523.9,2523.8,5.372]
[1749335340924,54.49463,2523.9,2523.8,5.372]
[1749335341125,107.55226,2523.9,2523.8,5.372]
[1749335341334,108.34424,2523.9,2523.8,5.372]
[1749335341816,108.41315172,2523.9,2523.8,5.372]
[1749335346527,108.41315172,2523.9,2523.8,0.792]
[1749335346729,108.41315172,2523.9,2523.8,5.372]
[1749335347832,107.62117172,2523.9,2523.8,5.372]
[1749335348026,108.41315172,2523.9,2523.8,5.372]
[1749335348631,106.23257172,2523.9,2523.8,5.372]
[1749335348834,106.23257172,2523.9,2523.8,8.5798]
[1749335349026,106.16366,2523.9,2523.8,8.5798]
[1749335354136,106.16366,2523.9,2523.8,9.8979]
[1749335356132,106.23257172,2523.9,2523.8,9.8979]
[1749335358030,106.23257172,2523.9,2523.8,8.5798]
[1749335361740,106.23257172,2523.9,2523.8,26.5248]
[1749335370544,106.23257172,2523.9,2523.7,0.00595226]
[1749335370545,0.79201,2523.8,2523.7,0.00595226]
[1749335370854,3.47691,2523.8,2523.7,0.00595226]
[1749335371255,3.47691,2523.8,2523.7,17.94995226]
[1749335372859,2.6849,2523.8,2523.7,18.74200226]
[1749335375259,2.6849,2523.8,2523.7,23.32000226]
[1749335377260,3.47691,2523.8,2523.7,23.32000226]
[1749335377660,2.6849,2523.8,2523.7,23.32000226]
[1749335378362,1.353,2523.8,2523.7,23.32000226]
[1749335378557,106.16366,2523.9,2523.8,0.79201]
[1749335378755,106.16366,2523.9,2523.8,3.99981]
[1749335381064,106.16366,2523.9,2523.8,0.79201]
[1749335381467,107.42466,2523.9,2523.8,0.79201]
[1749335384962,106.16366,2523.9,2523.8,0.79201]
[1749335385162,106.16366,2523.9,2523.8,3.99981]
[1749335389575,106.23257172,2523.9,2523.8,3.99981]
[1749335390571,89.5941335,2523.9,2523.8,3.99981]
[1749335395775,89.52522178,2523.9,2523.8,3.99981]
[1749335398678,89.5941335,2523.9,2523.8,3.99981]
[1749335399882,89.52522178,2523.9,2523.8,3.99981]
[1749335402782,89.5941335,2523.9,2523.8,3.99981]
[1749335403778,89.52522178,2523.9,2523.8,3.99981]
[1749335404787,89.5941335,2523.9,2523.8,3.99981]
[1749335405088,79.77676866,2523.9,2523.8,3.99981]
[1749335405885,79.70785694,2523.9,2523.8,3.99981]
[1749335406784,79.77676866,2523.9,2523.8,3.99981]
[1749335407889,79.70785694,2523.9,2523.8,3.99981]
[1749335408085,69.8904921,2523.9,2523.8,3.99981]
[1749335408292,69.8904921,2523.9,2523.8,8.99981]
[1749335408492,69.8904921,2523.9,2523.8,3.99981]
[1749335409185,69.8904921,2523.9,2523.8,21.94081]
[1749335409386,69.8904921,2523.9,2523.8,26.51681]
[1749335409791,71.1908921,2523.9,2523.8,26.51681]
[1749335410090,71.9828721,2523.9,2523.8,7.7838]
[1749335410295,0.79201,2523.8,2523.7,0.00595226]
[1749335410591,2.09241,2523.8,2523.7,17.94695226]
[1749335410794,7.09241,2523.8,2523.7,17.94695226]
[1749335411292,2.09241,2523.8,2523.7,17.94695226]
[1749335417500,2.09241,2523.8,2523.7,18.73900226]
[1749335417697,2.09241,2523.8,2523.7,17.94695226]
[1749335418700,2.09241,2523.8,2523.7,0.00595226]
[1749335418901,2.09241,2523.8,2523.7,17.94995226]
[1749335419995,2.09241,2523.8,2523.7,18.74200226]
[1749335420211,2.09241,2523.8,2523.7,17.94995226]
[1749335421201,2.16132172,2523.8,2523.7,18.74200226]
[1749335421512,2.16132172,2523.8,2523.7,17.94995226]
[1749335424093,2.09241,2523.8,2523.7,17.94995226]
[1749335424292,2.09241,2523.8,2523.7,0.00595226]
[1749335424498,7.09241,2523.8,2523.7,0.00595226]
[1749335425000,0.79214,2523.4,2523.3,28.535]
[1749335425205,0.79214,2523.4,2523.3,46.479]
[1749335426003,0.79214,2523.4,2523.3,47.27117]
[1749335426406,2.12744,2523.4,2523.3,46.479]
[1749335427907,2.12744,2523.4,2523.3,47.27117]
[1749335428713,2.12744,2523.4,2523.3,46.479]
[1749335429223,2.12744,2523.4,2523.3,28.535]
[1749335429512,2.12744,2523.4,2523.3,46.48]
[1749335431114,2.12744,2523.4,2523.3,47.27217]
[1749335434012,2.12744,2523.4,2523.3,5.36917]
[1749335434206,2.12744,2523.4,2523.3,22.523]
[1749335434909,2.12744,2523.4,2523.3,4.577]
[1749335435115,0.7922,2523.2,2523.1,0.00595226]
[1749335435615,5.7922,2523.2,2523.1,0.00595226]
[1749335435809,6.4514,2523.2,2523.1,0.00595226]
[1749335437404,1.4514,2523.2,2523.1,0.00595226]
[1749335438520,6.4514,2523.2,2523.1,0.00595226]
[1749335438719,7.59248816,2523.2,2523.1,0.00595226]
[1749335439219,2.8421,2523.2,2523.1,0.00595226]
[1749335439420,3.98313315,2523.2,2523.1,0.00595226]
[1749335439921,3.98340767,2523.2,2523.1,0.00595226]
[1749335441022,3.98317767,2523.2,2523.1,0.00595226]
[1749335441217,3.98318214,2523.2,2523.1,0.00595226]
[1749335441426,2.8421,2523.2,2523.1,0.00595226]
[1749335441618,3.98299041,2523.2,2523.1,0.00595226]
[1749335442620,2.8421,2523.2,2523.1,0.00595226]
[1749335442818,3.9828227,2523.2,2523.1,0.00595226]
[1749335443322,2.8421,2523.2,2523.1,0.00595226]
[1749335451535,3.98265122,2523.2,2523.1,0.00595226]
[1749335453244,0.7922,2523.2,2523.1,0.00595226]
[1749335453732,1.52918,2523.3,2523.2,0.7922]
[1749335453939,1.52917,2523.3,2523.2,0.7922]
[1749335454840,0.737,2523.3,2523.1,5.23655226]
[1749335455038,1.5292,2523.3,2523.2,0.7922]
[1749335456238,0.7922,2523.2,2523.1,6.02876226]
[1749335458942,0.79219,2523.3,2523.2,0.7922]
[1749335459137,0.79219,2523.3,2523.2,1.4644]
[1749335461242,0.79219,2523.3,2523.2,0.6722]
[1749335461943,0.79219,2523.3,2523.2,1.4644]
[1749335463242,0.79215,2523.4,2523.3,0.79217]
[1749335463442,0.79213,2523.5,2523.4,0.79214]
[1749335463644,1.93517059,2523.5,2523.4,0.79214]
[1749335464247,0.79215,2523.4,2523.3,0.79215]
[1749335465645,0.79217,2523.3,2523.2,1.46438]
[1749335467243,0.79217,2523.3,2523.2,0.6722]
[1749335467447,0.79217,2523.3,2523.2,1.4644]
[1749335468844,0.7922,2523.2,2523.1,4.58395226]
[1749335469041,2.7465,2523.2,2523.1,4.58395226]
[1749335472150,2.7465,2523.2,2523.1,0.00595226]
[1749335477253,2.7465,2523.2,2523.1,0.67625226]
[1749335480555,3.89068437,2523.2,2523.1,0.67625226]
[1749335481257,3.89068437,2523.2,2523.1,1.46848226]
[1749335481454,2.7465,2523.2,2523.1,1.46848226]
[1749335481660,2.7465,2523.2,2523.1,0.67625226]
[1749335481661,3.89087799,2523.2,2523.1,0.67625226]
[1749335482461,70.6826821,2523.3,2523.2,0.7922]
[1749335483357,69.8904921,2523.3,2523.2,0.7922]
[1749335483560,69.8904921,2523.3,2523.2,4.0]
[1749335483761,69.8904921,2523.3,2523.2,5.2974]
[1749335484561,69.8904921,2523.3,2523.2,23.2454]
[1749335485250,69.8904921,2523.3,2523.2,28.2454]
[1749335485555,69.88453984,2523.3,2523.2,28.2454]
[1749335490769,69.88453984,2523.3,2523.2,14.8734]
[1749335491073,69.88453984,2523.3,2523.2,32.8194]
[1749335493967,69.88453984,2523.3,2523.2,4.0]
[1749335494363,69.88453984,2523.3,2523.2,26.52]
[1749335494564,71.82863984,2523.3,2523.2,26.52]
[1749335494761,72.62080984,2523.3,2523.2,3.2078]
[1749335495075,71.89755156,2523.3,2523.2,26.54]
[1749335495373,72.68972156,2523.3,2523.2,26.54]
[1749335495673,72.68972156,2523.3,2523.2,26.539]
[1749335495970,71.89755156,2523.3,2523.2,26.538]
[1749335496658,69.95345156,2523.3,2523.2,26.538]
[1749335500573,69.95345156,2523.3,2523.2,23.3302]
[1749335500775,69.95345156,2523.3,2523.2,26.538]
[1749335502176,69.88453984,2523.3,2523.2,26.538]
[1749335503171,69.95345156,2523.3,2523.2,26.538]
[1749335507181,69.88453984,2523.3,2523.2,31.538]
[1749335507370,59.269105,2523.3,2523.2,31.538]
[1749335507570,55.640005,2523.3,2523.2,32.8347]
[1749335507773,52.378725,2523.3,2523.2,32.8347]
[1749335507980,50.093505,2523.3,2523.2,32.8347]
[1749335508281,47.068425,2523.3,2523.2,32.8347]
[1749335508577,43.960905,2523.3,2523.2,32.8347]
[1749335508770,39.99936366,2523.3,2523.2,32.8347]
[1749335508974,38.27822366,2523.3,2523.2,32.8347]
[1749335509277,31.14874232,2523.3,2523.2,32.8347]
[1749335509476,26.42024165,2523.3,2523.2,32.8347]
[1749335509677,22.45870031,2523.3,2523.2,32.8347]
[1749335509875,20.47792964,2523.3,2523.2,32.8347]
[1749335510077,6.74218413,2523.3,2523.2,32.8347]
[1749335510279,3.76465518,2523.3,2523.2,32.8347]
[1749335510481,2.73036518,2523.3,2523.2,32.8347]
[1749335510873,1.28600518,2523.3,2523.2,32.8347]
[1749335511080,0.00595226,2523.6,2523.5,0.79211]
[1749335511277,0.00595226,2523.6,2523.5,45.93191]
[1749335511581,0.00595226,2523.6,2523.5,50.93191]
[1749335512378,0.00595226,2523.6,2523.5,45.93191]
[1749335513387,0.00595226,2523.6,2523.5,50.93191]
[1749335517484,0.00595226,2523.6,2523.5,45.93191]
[1749335521987,3.2078,2524.7,2523.5,50.1398]
[1749335522189,3.2078,2525.0,2524.3,3.2078]
[1749335522492,0.79174,2524.7,2524.5,0.79178]
[1749335523094,0.79174,2524.7,2524.4,23.3408]
[1749335523393,1.303,2524.6,2524.5,23.34079]
[1749335527207,1.303,2524.6,2524.5,0.79179]
[1749335527405,1.303,2524.6,2524.5,23.33479]
[1749335527703,2.5732,2524.6,2524.5,23.33479]
[1749335528308,2.5732,2524.6,2524.5,0.79179]
[1749335528507,2.5732,2524.6,2524.5,23.33379]
[1749335539712,2.64211172,2524.6,2524.5,23.33379]
[1749335541713,2.64211172,2524.6,2524.5,0.79179]
[1749335541905,2.64211172,2524.6,2524.5,23.31179]
[1749335542806,2.64211172,2524.6,2524.3,3.21375226]
[1749335543012,0.79183,2524.4,2524.3,0.00595226]
[1749335543312,1.3523,2524.5,2524.4,5.37183]
[1749335545911,19.74669133,2528.8,2524.5,10.542]
[1749335546219,0.32175201,2529.3,2528.6,3.2078]
[1749335546416,9.704,2530.8,2529.2,3.2078]
[1749335546619,0.31771184,2530.8,2530.7,6.31476649]
[1749335546914,0.6743,2531.9,2530.7,4.78866275]
[1749335547114,0.6743,2531.9,2531.8,3.2078]
[1749335547415,6.8263,2531.9,2531.8,4.78866275]
[1749335547605,6.8255,2531.9,2531.4,3.2078]
[1749335547813,6.152,2531.9,2531.7,3.2078]
[1749335548109,6.152,2531.9,2531.8,0.56603925]
[1749335548317,1.27420556,2531.8,2531.7,8.73496779]
[1749335548514,3.2078,2532.7,2531.7,6.3788]
[1749335548709,7.9118,2534.5,2532.5,1.9732]
[1749335548908,4.704,2534.4,2534.0,7.03244019]
[1749335549208,0.40450478,2536.1,2534.0,7.03244019]
[1749335549209,3.2078,2537.0,2535.0,3.2078]
[1749335549415,24.01383637,2536.9,2536.6,5.33608704]
[1749335549617,0.31530559,2537.6,2536.7,26.40878876]